[Event "POL-chT 1 Liga 2019"]
[Site "Dzwirzyno"]
[Date "2019.09.15"]
[Round "9.27"]
[White "Kosakowski, Jakub"]
[Black "Rawicz, Karol"]
[Result "1/2-1/2"]
[ECO "B32"]
[WhiteElo "2411"]
[BlackElo "2200"]
[Annotator "NA"]
[PlyCount "103"]
[EventDate "2019.09.07"]
[EventType "team-tourn"]
[EventCountry "POL"]
[SourceTitle "playchess.com"]
[Source "ChessBase"]
[SourceQuality "1"]
[TimeControl "40/5400+30:1800+30"]

1. e4 {[%emt 0:00:00]} c5 {[%emt 0:00:00]} 2. Nf3 {[%emt 0:00:00]} Nc6 {[%emt 0:00:00]} 3. d4 {[%emt 0:00:31]} cxd4 {[%emt 0:00:00]} 4. Nxd4 {[%emt 0:00:04]} e5 {[%emt 0:00:00]} 5. Nb5 {[%emt 0:01:31]} d6 {[%emt 0:00:00]} 6. c4 {[%emt 0:04:38]} Be7 {[%emt 0:00:40]} 7. N1c3 {[%emt 0:00:54]} a6 {[%emt 0:00:09]} 8. Na3 {[%emt 0:00:08]} Be6 {[%emt 0:00:09]} 9. Nc2 {[%emt 0:03:05]} Bg5 {[%emt 0:03:34]} 10. Be2 {[%emt 0:02:40]} Bxc1 {[%emt 0:02:24]} 11. Rxc1 {[%emt 0:00:10]} Nf6 {[%emt 0:07:04]} 12. O-O {[%emt 0:00:31]} O-O {[%emt 0:00:24]} 13. Qd2 {[%emt 0:01:10]} Qe7 {[%emt 0:15:55]} 14. b3 {[%emt 0:02:45]} Rac8 {[%emt 0:03:50]} 15. Kh1 {[%emt 0:07:02]} Kh8 {[%emt 0:14:16]} 16. g3 {[%emt 0:04:57]} Rfd8 {[%emt 0:03:51]} 17. f3 {[%emt 0:06:02]} g6 {[%emt 0:08:00]} 18. Rfe1 {[%emt 0:05:03]} Rc7 {[%emt 0:10:50]} 19. Bf1 {[%emt 0:01:33]} Nb8 {[%emt 0:00:46]} 20. f4 {[%emt 0:10:36]} Bd7 {[%emt 0:08:48]} 21. Bg2 {[%emt 0:08:33]} Bc6 {[%emt 0:01:04]} 22. Rcd1 {[%emt 0:00:50]} Kg7 $16 {[%emt 0:02:20]} 23. Nb4 {[%emt 0:04:58]} h5 {[%emt 0:07:05]} 24. fxe5 {[%emt 0:06:30]} Qxe5 {[%emt 0:00:06]} 25. Nd3 {[%emt 0:00:38]} Qe8 {[%emt 0:03:19]} 26. Nf4 {[%emt 0:21:51]} Re7 {[%emt 0:00:02]} 27. Qd4 {[%emt 0:00:11]} Re5 {[%emt 0:00:06]} 28. Nd3 {[%emt 0:00:11]} Re6 {[%emt 0:01:38]} 29. Nd5 {[%emt 0:02:20]} Bxd5 {[%emt 0:02:38]} 30. exd5 {[%emt 0:01:24]} Rxe1+ {[%emt 0:00:30]} 31. Rxe1 {[%emt 0:00:01]} Qd7 {[%emt 0:00:45]} 32. c5 {[%emt 0:01:18]} Qg4 {[%emt 0:03:07]} 33. Qc3 {[%emt 0:01:52]} h4 {[%emt 0:02:13]} 34. Rf1 {[%emt 0:01:17]} Qg5 {[%emt 0:00:35]} 35. c6 {[%emt 0:01:30]} bxc6 {[%emt 0:00:00]} 36. dxc6 {[%emt 0:00:01]} Nxc6 37. Bxc6 {[%emt 0:00:42]} hxg3 {[%emt 0:00:08]} 38. Bg2 {[%emt 0:00:06]} gxh2 {[%emt 0:01:06]} 39. Nf2 {[%emt 0:00:54]} Qe5 {[%emt 0:00:23]} 40. Qxe5 {[%emt 0:00:00]} dxe5 {[%emt 0:00:00]} 41. Rd1 {[%emt 0:01:42]} Rh8 {[%emt 0:02:42]} 42. Bf3 {[%emt 0:04:28]} g5 {[%emt 0:06:48]} 43. Re1 {[%emt 0:01:34]} Rh4 {[%emt 0:05:39]} 44. Rxe5 {[%emt 0:01:01]} Kg6 {[%emt 0:00:29]} 45. Ne4 {[%emt 0:03:29]} Nxe4 {[%emt 0:04:54]} 46. Rxe4 {[%emt 0:00:11]} Rh3 {[%emt 0:02:00]} 47. Bg2 {[%emt 0:00:08]} Rc3 {[%emt 0:01:34]} 48. Kxh2 {[%emt 0:00:44]} f5 {[%emt 0:02:39]} 49. Re6+ {[%emt 0:00:23]} Kh5 {[%emt 0:00:03]} 50. Rxa6 {[%emt 0:00:18]} f4 {[%emt 0:00:01]} 51. Rc6 {[%emt 0:04:50]} Rd3 {[%emt 0:00:33]} 52. Rc2 {[%emt 0:07:52]} 1/2-1/2

[Event "POL-chT 1 Liga 2019"]
[Site "Dzwirzyno"]
[Date "2019.09.15"]
[Round "9.28"]
[White "Jaroch, Karol"]
[Black "Walter, Szymon"]
[Result "1/2-1/2"]
[ECO "E12"]
[WhiteElo "2236"]
[BlackElo "2311"]
[Annotator "NA"]
[PlyCount "117"]
[EventDate "2019.09.07"]
[EventType "team-tourn"]
[EventCountry "POL"]
[SourceTitle "playchess.com"]
[Source "ChessBase"]
[SourceQuality "1"]
[TimeControl "40/5400+30:1800+30"]

1. d4 {[%emt 0:00:00]} Nf6 {[%emt 0:00:00]} 2. c4 {[%emt 0:00:00]} e6 {[%emt 0:00:00]} 3. Nf3 {[%emt 0:00:00]} b6 {[%emt 0:01:35]} 4. a3 {[%emt 0:00:00]} Bb7 {[%emt 0:00:52]} 5. Bg5 {[%emt 0:00:09]} d5 {[%emt 0:04:15]} 6. Nc3 {[%emt 0:03:01]} Be7 {[%emt 0:01:39]} 7. Qa4+ {[%emt 0:06:00]} c6 {[%emt 0:04:16]} 8. Bxf6 {[%emt 0:09:00]} Bxf6 {[%emt 0:04:15]} 9. e4 {[%emt 0:04:17]} dxc4 {[%emt 0:14:59]} 10. Qxc4 {[%emt 0:01:06]} Ba6 $14 {[%emt 0:20:59]} 11. Qa4 {[%emt 0:00:31]} Qc8 {[%emt 0:00:26]} 12. Be2 {[%emt 0:08:40]} O-O {[%emt 0:01:59]} 13. O-O {[%emt 0:00:09]} c5 {[%emt 0:03:39]} 14. e5 {[%emt 0:21:06]} Bxe2 {[%emt 0:04:23]} 15. Nxe2 {[%emt 0:01:34]} Be7 {[%emt 0:01:01]} 16. Rfd1 {[%emt 0:00:42]} Qc6 {[%emt 0:05:58]} 17. Qc2 {[%emt 0:03:23]} Na6 {[%emt 0:04:45]} 18. dxc5 {[%emt 0:02:16]} bxc5 {[%emt 0:01:41]} 19. Nc3 {[%emt 0:01:15]} Rfd8 {[%emt 0:01:53]} 20. Rxd8+ {[%emt 0:01:29]} Rxd8 {[%emt 0:01:34]} 21. Rd1 {[%emt 0:00:15]} Rxd1+ {[%emt 0:02:16]} 22. Nxd1 {[%emt 0:01:54]} Nc7 {[%emt 0:00:47]} 23. Ne3 {[%emt 0:02:27]} Nd5 {[%emt 0:00:50]} 24. Nc4 {[%emt 0:04:14]} Nb6 {[%emt 0:00:54]} 25. b3 {[%emt 0:11:36]} f6 {[%emt 0:06:06]} 26. exf6 {[%emt 0:02:24]} gxf6 {[%emt 0:00:21]} 27. Ne3 {[%emt 0:01:22]} f5 {[%emt 0:01:57]} 28. Ne5 {[%emt 0:01:48]} Qd6 {[%emt 0:00:35]} 29. N5c4 {[%emt 0:01:22]} Nxc4 {[%emt 0:02:46]} 30. Nxc4 {[%emt 0:00:10]} Qd4 {[%emt 0:00:29]} 31. g3 {[%emt 0:00:10]} Bf6 {[%emt 0:00:39]} 32. Qe2 {[%emt 0:01:28]} Kf7 {[%emt 0:01:02]} 33. Qh5+ {[%emt 0:02:23]} Kg7 {[%emt 0:00:05]} 34. Qf3 {[%emt 0:00:06]} Kg6 {[%emt 0:03:06]} 35. h3 {[%emt 0:04:10]} h5 {[%emt 0:00:17]} 36. Qe2 {[%emt 0:00:54]} e5 {[%emt 0:01:16]} 37. Ne3 {[%emt 0:01:01]} Qe4 {[%emt 0:01:31]} 38. Qb5 {[%emt 0:00:15]} f4 {[%emt 0:02:01]} 39. Qe8+ {[%emt 0:00:12]} Kg7 {[%emt 0:00:52]} 40. gxf4 {[%emt 0:00:00]} Qb1+ {[%emt 0:00:00]} 41. Nf1 {[%emt 0:07:46]} exf4 {[%emt 0:01:04]} 42. Qxh5 {[%emt 0:00:07]} Qxb3 {[%emt 0:02:46]} 43. Qxc5 {[%emt 0:01:31]} Qxh3 {[%emt 0:00:29]} 44. Qxa7+ {[%emt 0:00:08]} Kg6 {[%emt 0:07:06]} 45. Qa8 {[%emt 0:00:35]} Qg4+ {[%emt 0:08:40]} 46. Qg2 {[%emt 0:00:37]} Qxg2+ {[%emt 0:00:14]} 47. Kxg2 {[%emt 0:00:05]} Bb2 {[%emt 0:01:24]} 48. a4 {[%emt 0:00:05]} Bc3 {[%emt 0:00:05]} 49. Kf3 {[%emt 0:00:32]} Kf5 {[%emt 0:00:25]} 50. Nh2 {[%emt 0:02:23]} Ke5 {[%emt 0:05:06]} 51. Kg4 {[%emt 0:00:52]} Kd5 {[%emt 0:00:55]} 52. Nf3 {[%emt 0:00:48]} Kc4 {[%emt 0:00:20]} 53. Kxf4 {[%emt 0:00:18]} Kb4 {[%emt 0:00:08]} 54. Ne5 {[%emt 0:01:22]} Kxa4 {[%emt 0:00:06]} 55. Ke4 {[%emt 0:00:10]} Bd2 {[%emt 0:01:47]} 56. Ng4 {[%emt 0:00:53]} Kb5 {[%emt 0:01:09]} 57. Ne3 {[%emt 0:00:09]} Kc6 {[%emt 0:00:47]} 58. f4 {[%emt 0:00:12]} Bxe3 {[%emt 0:02:23]} 59. Kxe3 {[%emt 0:00:07]} 1/2-1/2

[Event "POL-chT 1 Liga 2019"]
[Site "Dzwirzyno"]
[Date "2019.09.15"]
[Round "9.29"]
[White "Dzierzak, Radoslaw"]
[Black "Samborski, Henryk"]
[Result "1/2-1/2"]
[ECO "B91"]
[WhiteElo "2253"]
[BlackElo "2098"]
[Annotator "NA"]
[PlyCount "141"]
[EventDate "2019.09.07"]
[EventType "team-tourn"]
[EventCountry "POL"]
[SourceTitle "playchess.com"]
[Source "ChessBase"]
[SourceQuality "1"]
[TimeControl "40/5400+30:1800+30"]

1. e4 {[%emt 0:00:00]} c5 {[%emt 0:00:00]} 2. Nf3 {[%emt 0:00:00]} d6 {[%emt 0:00:39]} 3. d4 {[%emt 0:00:00]} cxd4 {[%emt 0:00:08]} 4. Nxd4 {[%emt 0:00:02]} Nf6 {[%emt 0:00:03]} 5. Nc3 {[%emt 0:00:07]} a6 {[%emt 0:00:08]} 6. g3 {[%emt 0:00:09]} e5 {[%emt 0:01:41]} 7. Nde2 {[%emt 0:00:09]} Be6 {[%emt 0:07:56]} 8. Bg2 {[%emt 0:00:20]} Nbd7 {[%emt 0:02:47]} 9. a4 {[%emt 0:00:10]} Be7 {[%emt 0:06:39]} 10. O-O {[%emt 0:00:46]} O-O {[%emt 0:00:47]} 11. h3 {[%emt 0:01:14]} Rc8 {[%emt 0:05:12]} 12. b3 {[%emt 0:04:12]} Ne8 {[%emt 0:06:34]} 13. Be3 {[%emt 0:03:02]} Bg5 {[%emt 0:12:19]} 14. f4 {[%emt 0:05:53]} Bh6 {[%emt 0:07:57]} 15. Qd2 {[%emt 0:03:24]} f6 {[%emt 0:00:43]} 16. Nd5 {[%emt 0:04:30]} Nc7 {[%emt 0:13:55]} 17. c4 {[%emt 0:04:54]} Nxd5 {[%emt 0:00:46]} 18. cxd5 {[%emt 0:00:58]} Bf7 {[%emt 0:00:05]} 19. a5 {[%emt 0:04:13]} Nc5 {[%emt 0:03:36]} 20. Rfb1 {[%emt 0:03:48]} exf4 {[%emt 0:03:30]} 21. gxf4 {[%emt 0:00:36]} Qe7 {[%emt 0:02:06]} 22. Ng3 {[%emt 0:04:14]} Bg6 {[%emt 0:00:58]} 23. f5 {[%emt 0:02:57]} Bxe3+ {[%emt 0:00:23]} 24. Qxe3 {[%emt 0:00:06]} Bf7 {[%emt 0:02:39]} 25. Qd4 {[%emt 0:05:43]} Rc7 {[%emt 0:03:51]} 26. b4 {[%emt 0:04:03]} Nd7 {[%emt 0:00:11]} 27. Rc1 {[%emt 0:02:47]} Rfc8 {[%emt 0:00:16]} 28. Ne2 {[%emt 0:01:23]} Qe5 {[%emt 0:08:54]} 29. Qxe5 {[%emt 0:02:09]} Nxe5 {[%emt 0:01:16]} 30. Rxc7 {[%emt 0:00:12]} Rxc7 {[%emt 0:00:02]} 31. Rc1 {[%emt 0:00:20]} Rxc1+ {[%emt 0:02:13]} 32. Nxc1 {[%emt 0:00:04]} Be8 {[%emt 0:00:57]} 33. Kf2 {[%emt 0:01:46]} Bb5 {[%emt 0:00:36]} 34. Bf3 {[%emt 0:03:14]} Kf7 {[%emt 0:02:33]} 35. Be2 {[%emt 0:04:38]} Ba4 {[%emt 0:01:15]} 36. Na2 {[%emt 0:02:10]} Bb3 {[%emt 0:01:21]} 37. Nc3 {[%emt 0:01:03]} Bc4 {[%emt 0:00:18]} 38. Bxc4 {[%emt 0:06:32]} Nxc4 {[%emt 0:00:03]} 39. Ne2 {[%emt 0:00:38]} g6 {[%emt 0:02:23]} 40. fxg6+ {[%emt 0:00:00]} hxg6 {[%emt 0:00:00]} 41. Nd4 {[%emt 0:03:41]} Ke7 {[%emt 0:05:13]} 42. Ke2 {[%emt 0:03:15]} Kd7 {[%emt 0:03:45]} 43. Kd3 {[%emt 0:02:57]} Ne5+ {[%emt 0:00:07]} 44. Kc3 {[%emt 0:03:23]} Kc7 {[%emt 0:03:26]} 45. b5 {[%emt 0:04:28]} g5 {[%emt 0:02:09]} 46. bxa6 {[%emt 0:03:05]} bxa6 {[%emt 0:00:04]} 47. Nf5 {[%emt 0:01:44]} Kd7 {[%emt 0:02:57]} 48. h4 {[%emt 0:00:59]} gxh4 {[%emt 0:00:19]} 49. Nxh4 {[%emt 0:00:06]} Nf7 {[%emt 0:00:41]} 50. Nf5 {[%emt 0:01:14]} Nd8 {[%emt 0:00:14]} 51. Nd4 {[%emt 0:00:33]} Nb7 {[%emt 0:00:48]} 52. Nc6 {[%emt 0:00:20]} Nc5 {[%emt 0:01:14]} 53. Kd4 {[%emt 0:00:11]} Nb3+ {[%emt 0:00:29]} 54. Ke3 {[%emt 0:00:27]} Ke8 {[%emt 0:00:22]} 55. Kf4 {[%emt 0:00:32]} Kf7 {[%emt 0:03:26]} 56. Kf5 {[%emt 0:02:04]} Nd2 {[%emt 0:00:52]} 57. Nb8 {[%emt 0:03:52]} Nc4 {[%emt 0:00:30]} 58. Nxa6 {[%emt 0:00:26]} Nxa5 {[%emt 0:00:06]} 59. Nb8 {[%emt 0:01:07]} Nc4 {[%emt 0:00:21]} 60. Nd7 {[%emt 0:01:03]} Ne3+ {[%emt 0:00:18]} 61. Kf4 {[%emt 0:00:17]} Nc4 {[%emt 0:00:24]} 62. Kg4 {[%emt 0:00:28]} Kg6 {[%emt 0:00:50]} 63. Nf8+ {[%emt 0:00:48]} Kf7 {[%emt 0:00:12]} 64. Ne6 {[%emt 0:00:17]} Ne3+ {[%emt 0:02:04]} 65. Kf3 {[%emt 0:00:50]} Nc4 {[%emt 0:00:16]} 66. Kf4 {[%emt 0:00:16]} Kg6 {[%emt 0:00:21]} 67. Nd8 {[%emt 0:00:38]} Ne5 {[%emt 0:00:50]} 68. Nc6 {[%emt 0:02:55]} Nc4 {[%emt 0:00:44]} 69. Nd4 {[%emt 0:00:38]} Kf7 {[%emt 0:01:33]} 70. Nf5 {[%emt 0:00:36]} Ke8 {[%emt 0:00:08]} 71. Nxd6+ {[%emt 0:01:42]} 1/2-1/2

[Event "POL-chT 1 Liga 2019"]
[Site "Dzwirzyno"]
[Date "2019.09.15"]
[Round "9.30"]
[White "Worek, Joanna"]
[Black "Malicka, Maria"]
[Result "1-0"]
[ECO "C84"]
[WhiteElo "2308"]
[BlackElo "2095"]
[Annotator "NA"]
[PlyCount "87"]
[EventDate "2019.09.07"]
[EventType "team-tourn"]
[EventCountry "POL"]
[SourceTitle "playchess.com"]
[Source "ChessBase"]
[SourceQuality "1"]
[TimeControl "40/5400+30:1800+30"]

1. e4 {[%emt 0:00:00]} e5 {[%emt 0:00:00]} 2. Nf3 {[%emt 0:00:00]} Nc6 {[%emt 0:00:00]} 3. Bb5 {[%emt 0:00:00]} a6 {[%emt 0:00:00]} 4. Ba4 {[%emt 0:01:02]} Nf6 {[%emt 0:00:00]} 5. O-O {[%emt 0:01:18]} Be7 {[%emt 0:00:05]} 6. d3 {[%emt 0:00:16]} b5 {[%emt 0:02:15]} 7. Bb3 {[%emt 0:00:05]} d6 {[%emt 0:01:08]} 8. a4 {[%emt 0:00:29]} Bb7 {[%emt 0:06:25]} 9. c3 {[%emt 0:03:34]} O-O {[%emt 0:00:58]} 10. Re1 {[%emt 0:00:42]} Na5 {[%emt 0:03:50]} 11. Bc2 {[%emt 0:03:05]} c5 {[%emt 0:00:25]} 12. d4 {[%emt 0:04:22]} cxd4 {[%emt 0:15:55]} 13. cxd4 {[%emt 0:00:23]} Qc7 {[%emt 0:00:24]} 14. Nbd2 {[%emt 0:07:13]} Nc6 $11 {[%emt 0:05:22]} 15. Nf1 {[%emt 0:02:49]} Nxd4 {[%emt 0:02:44]} 16. Nxd4 {[%emt 0:01:15]} exd4 {[%emt 0:00:05]} 17. Bd3 {[%emt 0:00:16]} Bc6 {[%emt 0:07:00]} 18. Ng3 {[%emt 0:01:00]} Nd7 {[%emt 0:08:03]} 19. Bb1 {[%emt 0:12:44]} bxa4 {[%emt 0:03:46]} 20. Nf5 {[%emt 0:10:03]} Bf6 {[%emt 0:00:39]} 21. Ra3 {[%emt 0:01:55]} Nc5 {[%emt 0:07:28]} 22. Rh3 {[%emt 0:08:31]} g6 {[%emt 0:01:52]} 23. Nh6+ {[%emt 0:00:51]} Kh8 {[%emt 0:01:03]} 24. Ng4 {[%emt 0:01:15]} Bg7 {[%emt 0:00:39]} 25. Bh6 {[%emt 0:00:56]} f5 {[%emt 0:11:54]} 26. exf5 {[%emt 0:01:05]} gxf5 {[%emt 0:00:05]} 27. Bg5 {[%emt 0:00:21]} Be4 {[%emt 0:03:34]} 28. Nh6 {[%emt 0:02:59]} Rae8 {[%emt 0:02:03]} 29. Ba2 {[%emt 0:05:55]} d5 {[%emt 0:04:57]} 30. Qh5 {[%emt 0:05:30]} Bxh6 {[%emt 0:03:53]} 31. Bxh6 {[%emt 0:11:51]} Rg8 {[%emt 0:00:59]} 32. f3 {[%emt 0:00:28]} Nd3 {[%emt 0:00:23]} 33. Rf1 {[%emt 0:04:33]} Nb4 {[%emt 0:05:23]} 34. fxe4 {[%emt 0:01:30]} Nxa2 {[%emt 0:00:09]} 35. exf5 {[%emt 0:02:07]} Re7 {[%emt 0:02:16]} 36. f6 {[%emt 0:00:27]} Rf7 {[%emt 0:00:14]} 37. Qxd5 {[%emt 0:02:12]} Nb4 {[%emt 0:00:37]} 38. Qxd4 {[%emt 0:00:26]} Nc6 {[%emt 0:00:59]} 39. Bg7+ {[%emt 0:00:45]} Rfxg7 {[%emt 0:00:23]} 40. fxg7+ {[%emt 0:00:00]} Qxg7 {[%emt 0:00:00]} 41. Qxg7+ {[%emt 0:00:24]} Rxg7 {[%emt 0:00:14]} 42. Rf8+ {[%emt 0:00:39]} Rg8 {[%emt 0:00:04]} 43. Rxg8+ {[%emt 0:00:27]} Kxg8 {[%emt 0:00:03]} 44. Ra3 {[%emt 0:00:07]} 1-0